fUSD/lending_fUSD_20240109
["ID","MTS","AMOUNT","RATE_DAILY","PERIOD"]
[310966175,1704836019467,-2496.21,0.00041753,30]
[310966176,1704836019477,-2311.14,0.00041753,30]
[310966177,1704836019486,-3376.56,0.00041753,30]
[310966178,1704836019496,-692.76,0.00041753,30]
[310966179,1704836019505,-1358.66,0.00041753,30]
[310966180,1704836019515,-769.11,0.00041753,30]
[310966181,1704836019525,-500.0,0.00041753,30]
[310966182,1704836019534,-1845.73,0.00041753,30]
[310966183,1704836019544,-13108.96,0.00041753,30]
[310966184,1704836019554,-500.0,0.00041753,30]
[310966185,1704836019563,-500.0,0.00041753,30]
[310966186,1704836019574,-9899.51,0.00041753,30]
[310966187,1704836019583,-1387.57,0.00041753,30]
[310966188,1704836019594,-10579.54,0.00041753,30]
[310966189,1704836019604,-1436.88,0.00041753,30]
[310966190,1704836019614,-500.0,0.00041753,30]
[310966191,1704836019624,-1636.08,0.00041753,30]
[310966192,1704836019634,-780.53,0.00041753,30]
[310966193,1704836019643,-1868.59,0.00041753,30]
[310966194,1704836019652,-583.25,0.00041753,30]
[310966195,1704836019662,-7300.87,0.00041753,30]
[310966196,1704836019671,-500.0,0.00041753,30]
[310966197,1704836019684,-1200.98,0.00041753,30]
[310966198,1704836019694,-2024.47,0.00041753,30]
[310966199,1704836019703,-1010.7,0.00041753,30]
[310966200,1704836019712,-3584.51,0.00041753,30]
[310966201,1704836019722,-829.24,0.00041753,30]
[310966202,1704836019732,-1022.82,0.00041753,30]
[310966203,1704836019741,-663.65,0.00041753,30]
[310966204,1704836019752,-500.0,0.00041753,30]
[310966205,1704836019762,-1276.96,0.00041753,30]
[310966206,1704836019772,-719.05,0.00041753,30]
[310966207,1704836019782,-1279.36,0.00041753,30]
[310966208,1704836019792,-1955.18,0.00041753,30]
[310966209,1704836019802,-500.0,0.00041753,30]
[310966210,1704836019812,-5923.58,0.00041753,30]
[310966211,1704836019822,-1076.29,0.00041753,30]
[310966212,1704836019831,-3773.23,0.00041753,30]
[310966213,1704836019841,-1442.56,0.00041753,30]
[310966214,1704836019850,-3976.14,0.00041753,30]
[310966215,1704836019860,-2969.33,0.00041753,30]
[310966216,1704836019870,-1085.14,0.00041753,30]
[310966217,1704836019880,-546.98,0.00041753,30]
[310966218,1704836019889,-1958.44,0.00041753,30]
[310966219,1704836019898,-500.0,0.00041753,30]
[310966220,1704836019908,-582.47891254,0.00041753,30]
[310966221,1704836019917,-500.0,0.00041753,30]
[310966222,1704836019926,-6261.12,0.00041753,30]
[310966223,1704836019938,-500.0,0.00041753,30]
[310966224,1704836019947,-645.66,0.00041753,30]
[310966225,1704836019957,-1066.92,0.00041753,30]
[310966226,1704836019966,-1757.07,0.00041753,30]
[310966227,1704836019975,-894.85,0.00041753,30]
[310966228,1704836019984,-2874.62,0.00041753,30]
[310966229,1704836019994,-3862.71,0.00041753,30]
[310966230,1704836020003,-500.0,0.00041753,30]
[310966231,1704836020013,-4543.27,0.00041753,30]
[310966232,1704836020023,-1341.14,0.00041753,30]
[310966233,1704836020032,-577.82,0.00041753,30]
[310966234,1704836020042,-901.82,0.00041753,30]
[310966235,1704836020051,-500.0,0.00041753,30]
[310966236,1704836020060,-500.0,0.00041753,30]
[310966237,1704836020070,-500.0,0.00041753,30]
[310966238,1704836020079,-3856.08,0.00041753,30]
[310966239,1704836020088,-1349.44,0.00041753,30]
[310966240,1704836020097,-352.44531785,0.00041753,30]
[310966241,1704836020107,-1130.33,0.00041753,30]
[310966242,1704836020116,-588.78,0.00041753,30]
[310966243,1704836020126,-1641.57,0.00041753,30]
[310966244,1704836020135,-1586.06,0.00041753,30]
[310966245,1704836020146,-760.68,0.00041753,30]
[310966246,1704836020156,-857.88,0.00041753,30]
[310966247,1704836020166,-3762.07,0.00041753,30]
[310966248,1704836020176,-500.0,0.00041753,30]
[310966249,1704836020187,-536.72,0.00041753,30]
[310966250,1704836020197,-550.1,0.00041753,30]
[310966251,1704836020207,-4420.44,0.00041753,30]
[310966252,1704836020218,-4355.86,0.00041753,30]
[310966253,1704836020228,-1511.36,0.00041753,30]
[310966254,1704836020239,-500.0,0.00041753,30]
[310966255,1704836020248,-1161.02,0.00041753,30]
[310966256,1704836020258,-10725.89,0.00041753,30]
[310966257,1704836020269,-1044.46,0.00041753,30]
[310966258,1704836020278,-929.83,0.00041753,30]
[310966259,1704836020287,-500.0,0.00041753,30]
[310966260,1704836020297,-867.5,0.00041753,30]
[310966261,1704836020307,-720.34,0.00041753,30]
[310966262,1704836020317,-6977.93,0.00041753,30]
[310966263,1704836020326,-500.0,0.00041753,30]
[310966264,1704836020336,-500.0,0.00041753,30]
[310966265,1704836020345,-964.23,0.00041753,30]
[310966266,1704836020355,-1586.56,0.00041753,30]
[310966267,1704836020365,-3056.94,0.00041753,30]
[310966268,1704836020375,-500.0,0.00041753,7]
[310966269,1704836020384,-218.65342396,0.00041753,30]
[310966270,1704836020394,-500.0,0.00041753,30]
[310966271,1704836020403,-1370.1,0.00041753,30]
[310966272,1704836020413,-3469.89,0.00041753,30]
[310966273,1704836020422,-648.93,0.00041753,30]
[310966274,1704836020433,-500.0,0.00041753,30]
[310966275,1704836020537,-994.23,0.00041753,30]
[310966276,1704836020547,-500.0,0.00041753,30]
[310966277,1704836020557,-500.0,0.00041753,30]
[310966278,1704836020567,-500.0,0.00041753,30]
[310966279,1704836020576,-3974.35,0.00041753,30]
[310966280,1704836020586,-575.24,0.00041753,30]
[310966281,1704836020596,-1208.62,0.00041753,30]
[310966282,1704836020605,-500.0,0.00041753,30]
[310966283,1704836020615,-500.0,0.00041753,30]
[310966284,1704836020625,-500.0,0.00041753,30]
[310966285,1704836020635,-840.42,0.00041753,30]
[310966286,1704836020644,-442.62,0.00041753,30]
[310966287,1704836020653,-500.0,0.00041753,30]
[310966288,1704836020663,-20052.88,0.00041753,30]
[310966289,1704836020674,-1154.2,0.00041753,30]
[310966290,1704836020687,-500.0,0.00041753,30]
[310966291,1704836020696,-3280.13,0.00041753,30]
[310966292,1704836020706,-1336.18,0.00041753,30]
[310966293,1704836020715,-500.0,0.00041753,30]
[310966294,1704836020725,-3059.66,0.00041753,30]
[310966295,1704836020734,-808.78,0.00041753,30]
[310966296,1704836020743,-5796.52,0.00041753,30]
[310966297,1704836020753,-595.48,0.00041753,30]
[310966298,1704836020762,-772.79,0.00041753,30]
[310966299,1704836020771,-1773.57,0.00041753,30]
[310966300,1704836020781,-500.0,0.00041753,30]
[310966301,1704836020790,-1436.73,0.00041753,30]
[310966302,1704836020800,-1274.83,0.00041753,30]
[310966303,1704836020810,-823.79,0.00041753,30]
[310966304,1704836020819,-767.78,0.00041753,30]
[310966305,1704836020828,-500.0,0.00041753,30]
[310966306,1704836020837,-500.0,0.00041753,30]
[310966307,1704836020847,-500.0,0.00041753,30]
[310966308,1704836020856,-1764.13,0.00041753,30]
[310966309,1704836020866,-924.78,0.00041753,30]
[310966310,1704836020876,-1944.68,0.00041753,30]
[310966311,1704836020885,-10402.25,0.00041753,30]
[310966312,1704836020895,-500.0,0.00041753,30]
[310966313,1704836020904,-4303.2,0.00041753,30]
[310966314,1704836020913,-4288.57,0.00041753,30]
[310966315,1704836020923,-7059.7,0.00041753,30]
[310966316,1704836020934,-6327.7,0.00041753,30]
[310966317,1704836020943,-1629.67,0.00041753,30]
[310966318,1704836020953,-2082.36,0.00041753,30]
[310966319,1704836020962,-699.1,0.00041753,30]
[310966320,1704836020972,-500.0,0.00041753,30]
[310966321,1704836020982,-737.62,0.00041753,30]
[310966322,1704836020992,-156.82,0.00041764,2]
[310966323,1704836021002,-187.3,0.00041768,60]
[310966324,1704836021011,-3000.0,0.0004178,120]
[310966325,1704836021021,-4721.59,0.000418,5]
[310966326,1704836021030,-885.93,0.000418,4]
[310966327,1704836021039,-885.93,0.000418,4]
[310966328,1704836021048,-885.93,0.000418,4]
[310966329,1704836021057,-885.93,0.000418,4]
[310966330,1704836021067,-885.93,0.000418,4]
[310966331,1704836021076,-885.93,0.000418,4]
[310966332,1704836021085,-885.93,0.000418,4]
[310966333,1704836021094,-885.93,0.000418,4]
[310966334,1704836021104,-885.93,0.000418,4]
[310966335,1704836021113,-885.93,0.000418,4]
[310966336,1704836021122,-885.93,0.000418,4]
[310966337,1704836021131,-885.93,0.000418,4]
[310966338,1704836021140,-885.93,0.000418,4]
[310966339,1704836021150,-885.93,0.000418,4]
[310966340,1704836021159,-885.93,0.000418,4]
[310966341,1704836021168,-885.93,0.000418,4]
[310966342,1704836021178,-885.93,0.000418,4]
[310966343,1704836021192,-885.93,0.000418,4]
[310966344,1704836021201,-885.93,0.000418,4]
[310966345,1704836021211,-885.93,0.000418,4]
[310966346,1704836021220,-558.63510184,0.00041835,30]
[310966347,1704836021229,-500.0,0.00041835,30]
[310966348,1704836021239,-500.0,0.00041835,30]
[310966349,1704836021249,-500.0,0.00041835,30]
[310966350,1704836021259,-500.0,0.00041835,30]
[310966351,1704836021268,-519.07,0.00041835,30]
[310966352,1704836021277,-500.0,0.00041835,30]
[310966353,1704836021287,-500.0,0.00041835,30]
[310966354,1704836021296,-500.0,0.00041835,30]
[310966355,1704836021306,-395.51146425,0.00041835,30]
[310966356,1704836021315,-521.51630565,0.00041835,30]
[310966357,1704836021324,-1003.07,0.00041835,6]
[310966358,1704836021334,-500.0,0.00041835,30]
[310966359,1704836021343,-500.0,0.00041835,30]
[310966360,1704836021352,-599.12,0.00041835,30]
[310966361,1704836021362,-500.0,0.00041835,30]
[310966362,1704836021376,-500.0,0.00041835,30]
[310966363,1704836021386,-870.95,0.00041835,30]
[310966364,1704836021395,-774.16,0.00041835,30]
[310966365,1704836021404,-500.0,0.00041835,30]
[310966366,1704836021415,-500.0,0.00041835,2]
[310966367,1704836021425,-628.44,0.00041835,30]
[310966368,1704836021435,-500.0,0.00041835,30]
[310966369,1704836021444,-500.0,0.00041835,30]
[310966370,1704836021453,-583.93,0.00041835,30]
[310966371,1704836021463,-500.0,0.00041835,30]
[310966372,1704836021472,-664.43,0.00041835,30]
[310966373,1704836021481,-642.11,0.00041835,30]
[310966374,1704836021491,-1006.44,0.00041835,30]
[310966375,1704836021501,-785.15,0.00041835,30]
[310966376,1704836021510,-500.0,0.00041835,30]
[310966377,1704836021519,-500.0,0.00041835,30]
[310966378,1704836021528,-500.0,0.00041835,30]
[310966379,1704836021537,-500.0,0.00041835,30]
[310966380,1704836021546,-647.85,0.00041835,30]
[310966381,1704836021556,-229.16959289,0.00041835,30]
[310966382,1704836021565,-1176.3,0.00041835,30]
[310966383,1704836021574,-892.9,0.00041835,30]
[310966384,1704836021583,-875.0,0.00041835,30]
[310966385,1704836021592,-500.0,0.00041835,30]
[310966386,1704836021602,-500.0,0.00041835,30]
[310966387,1704836021611,-500.0,0.00041835,30]
[310966388,1704836021619,-924.33,0.00041835,30]
[310966389,1704836021629,-552.38,0.00041835,30]
[310966390,1704836021638,-1079.22,0.00041835,30]
[310966391,1704836021646,-1021.0,0.00041835,30]
[310966392,1704836021655,-500.0,0.00041835,30]
[310966393,1704836021665,-500.0,0.00041835,30]
[310966394,1704836021673,-500.0,0.00041835,30]
[310966395,1704836021685,-500.0,0.00041835,30]
[310966396,1704836021694,-749.02,0.00041835,30]
[310966397,1704836021703,-500.0,0.00041835,30]
[310966398,1704836021712,-500.0,0.00041835,30]
[310966399,1704836021721,-507.33,0.00041835,30]
[310966400,1704836021730,-500.0,0.00041835,30]
[310966401,1704836021739,-500.0,0.00041835,30]
[310966402,1704836021749,-500.0,0.00041835,30]
[310966403,1704836021758,-556.06,0.00041835,30]
[310966404,1704836021767,-500.0,0.00041835,30]
[310966405,1704836021777,-500.0,0.00041835,30]
[310966406,1704836021786,-544.95,0.00041835,30]
[310966407,1704836021795,-500.0,0.00041835,30]
[310966408,1704836021804,-889.52,0.00041835,30]
[310966409,1704836021813,-643.58,0.00041835,30]
[310966410,1704836021822,-857.15,0.00041835,30]
[310966411,1704836021832,-549.07,0.00041835,30]
[310966412,1704836021841,-500.0,0.00041835,30]
[310966413,1704836021850,-674.98,0.00041835,30]
[310966414,1704836021860,-500.0,0.00041835,30]
[310966415,1704836021869,-879.09,0.00041835,30]
[310966416,1704836021879,-500.0,0.00041835,30]
[310966417,1704836021888,-525.43,0.00041835,30]
[310966418,1704836021898,-740.92,0.00041835,30]
[310966419,1704836021907,-500.0,0.00041835,30]
[310966420,1704836021917,-500.0,0.00041835,30]
[310966421,1704836021925,-500.0,0.00041835,30]
[310966422,1704836021937,-894.54,0.00041835,30]
[310966423,1704836021946,-1210.61,0.00041835,30]
[310966424,1704836021955,-500.0,0.00041835,30]
[310966425,1704836021964,-1262.57,0.00041835,30]
[310966426,1704836021973,-500.0,0.00041835,30]
[310966427,1704836021981,-767.71,0.00041835,30]
[310966428,1704836021991,-571.45,0.00041835,30]
[310966429,1704836022000,-500.0,0.00041835,30]
[310966430,1704836022009,-500.0,0.00041835,30]
[310966431,1704836022019,-1000.0,0.00041835,30]
[310966432,1704836022028,-1012.62,0.00041835,30]
[310966433,1704836022037,-568.08,0.00041835,30]
[310966434,1704836022046,-500.0,0.00041835,30]
[310966435,1704836022055,-1247.69,0.00041835,30]
[310966436,1704836022064,-500.0,0.00041835,30]
[310966437,1704836022073,-504.29,0.00041835,30]
[310966438,1704836022082,-744.29,0.00041835,30]
[310966439,1704836022091,-500.0,0.00041835,30]
[310966440,1704836022100,-309.87945574,0.00041835,30]
[310966441,1704836022109,-173.55856275,0.00041835,30]
[310966442,1704836022119,-1071.67,0.00041835,30]
[310966443,1704836022129,-1041.65,0.00041835,30]
[310966444,1704836022139,-597.48,0.00041835,30]
[310966445,1704836022149,-500.0,0.00041835,30]
[310966446,1704836022159,-670.96,0.00041835,30]
[310966447,1704836022169,-500.0,0.00041835,30]
[310966448,1704836022178,-992.5,0.00041835,30]
[310966449,1704836022194,-500.0,0.00041835,30]
[310966450,1704836022204,-1379.24,0.00041835,30]
[310966451,1704836022213,-891.81,0.00041835,30]
[310966452,1704836022223,-500.0,0.00041835,30]
[310966453,1704836022233,-3464.95,0.00041835,30]
[310966454,1704836022242,-838.55,0.00041835,30]
[310966455,1704836022253,-660.81,0.00041835,30]
[310966456,1704836022263,-1525.96,0.00041835,30]
[310966457,1704836022273,-940.28,0.00041835,30]
[310966458,1704836022283,-797.09,0.00041835,30]
[310966459,1704836022293,-500.0,0.00041835,30]
[310966460,1704836022302,-1021.78,0.00041835,30]
[310966461,1704836022312,-500.0,0.00041835,30]
[310966462,1704836022322,-765.32,0.00041835,30]
[310966463,1704836022332,-624.2,0.00041835,30]
[310966464,1704836022341,-1106.38,0.00041835,30]
[310966465,1704836022351,-581.2,0.00041835,30]
[310966466,1704836022360,-1950.33,0.00041835,30]
[310966467,1704836022371,-779.64,0.00041835,30]
[310966468,1704836022381,-500.0,0.00041835,30]
[310966469,1704836022390,-500.0,0.00041835,30]
[310966470,1704836022400,-557.57,0.00041835,30]
[310966471,1704836022410,-578.59,0.00041835,30]
[310966472,1704836022419,-742.05,0.00041835,30]
[310966473,1704836022429,-500.0,0.00041835,30]
[310966474,1704836022442,-580.83260416,0.00041835,30]
[310966475,1704836022452,-500.0,0.00041835,30]
[310966476,1704836022462,-718.23,0.00041835,30]
[310966477,1704836022471,-500.0,0.00041835,30]
[310966478,1704836022481,-500.0,0.00041835,30]
[310966479,1704836022490,-500.0,0.00041835,30]
[310966480,1704836022500,-1681.49,0.00041835,30]
[310966481,1704836022510,-667.7,0.00041835,30]
[310966482,1704836022520,-500.0,0.00041835,30]
[310966483,1704836022529,-500.0,0.00041835,30]
[310966484,1704836022539,-500.0,0.00041835,30]
[310966485,1704836022549,-803.72,0.00041835,30]
[310966486,1704836022558,-691.09,0.00041835,30]
[310966487,1704836022568,-820.84,0.00041835,30]
[310966488,1704836022578,-500.0,0.00041835,30]
[310966489,1704836022588,-500.0,0.00041835,7]
[310966490,1704836022597,-500.0,0.00041835,30]
[310966491,1704836022606,-500.0,0.00041835,30]
[310966492,1704836022616,-612.42,0.00041835,30]
[310966493,1704836022626,-500.0,0.00041835,30]
[310966494,1704836022635,-500.0,0.00041835,30]
[310966495,1704836022645,-500.0,0.00041835,30]
[310966496,1704836022655,-700.31,0.00041835,30]
[310966497,1704836022665,-500.0,0.00041835,30]
[310966498,1704836022675,-1173.84,0.00041835,30]
[310966499,1704836022686,-890.72,0.00041835,30]
[310966500,1704836022696,-519.17,0.00041835,30]
[310966501,1704836022705,-681.49,0.00041835,30]
[310966502,1704836022715,-627.48,0.00041835,30]
[310966503,1704836022725,-1141.38,0.00041835,30]
[310966504,1704836022735,-1148.32,0.00041835,30]
[310966505,1704836022745,-596.45,0.00041835,30]
[310966506,1704836022754,-616.05,0.00041835,30]
[310966507,1704836022764,-500.0,0.00041835,30]
[310966508,1704836022774,-1154.54,0.00041835,30]
[310966509,1704836022783,-167.57207468,0.00041835,30]
[310966510,1704836022793,-500.0,0.00041835,30]
[310966511,1704836022803,-622.7,0.00041835,30]
[310966512,1704836022813,-1370.57,0.00041835,30]
[310966513,1704836022823,-724.45,0.00041835,30]
[310966514,1704836022832,-555.95,0.00041835,30]
[310966515,1704836022842,-500.0,0.00041835,30]
[310966516,1704836022853,-677.52,0.00041835,30]
[310966517,1704836022863,-500.0,0.00041835,30]
[310966518,1704836022873,-500.0,0.00041835,30]
[310966519,1704836022883,-500.0,0.00041835,30]
[310966520,1704836022892,-500.0,0.00041835,30]
[310966521,1704836022902,-500.0,0.00041835,30]
[310966522,1704836022911,-854.7,0.00041835,30]
[310966523,1704836022922,-1132.67,0.00041835,30]
[310966524,1704836022932,-500.0,0.00041835,30]
[310966525,1704836022945,-500.0,0.00041835,30]
[310966526,1704836022954,-950.79,0.00041835,30]
[310966527,1704836022964,-500.0,0.00041835,30]
[310966528,1704836022975,-1393.23,0.00041835,30]
[310966529,1704836022986,-1054.09,0.00041835,30]
[310966530,1704836022996,-500.0,0.00041835,30]
[310966531,1704836023006,-500.0,0.00041835,30]
[310966532,1704836023015,-500.0,0.00041835,30]
[310966533,1704836023025,-982.92,0.00041835,30]
[310966534,1704836023036,-897.66,0.00041835,30]
[310966535,1704836023045,-612.78,0.00041835,30]
[310966536,1704836023055,-1038.74,0.00041835,30]
[310966537,1704836023064,-500.0,0.00041835,30]
[310966538,1704836023074,-500.0,0.00041835,30]
[310966539,1704836023085,-585.83,0.00041835,30]
[310966540,1704836023094,-1010.24,0.00041835,30]
[310966541,1704836023104,-625.2,0.00041835,30]
[310966542,1704836023113,-500.0,0.00041835,30]
[310966543,1704836023123,-1823.52,0.00041835,30]
[310966544,1704836023134,-1503.9,0.00041835,30]
[310966545,1704836023144,-500.0,0.00041835,30]
[310966546,1704836023154,-975.74,0.00041835,30]
[310966547,1704836023164,-860.51,0.00041835,30]
[310966548,1704836023174,-693.44,0.00041835,30]
[310966549,1704836023187,-1252.33,0.00041835,30]
[310966550,1704836023197,-812.42,0.00041835,30]
[310966551,1704836023207,-500.0,0.00041835,30]
[310966552,1704836023218,-1661.63,0.00041835,30]
[310966553,1704836023227,-835.41,0.00041835,30]
[310966554,1704836023237,-929.16,0.00041835,30]
[310966555,1704836023247,-500.0,0.00041835,30]
[310966556,1704836023258,-996.89,0.00041835,4]
[310966557,1704836023268,-500.0,0.00041835,30]
[310966558,1704836023278,-500.0,0.00041835,30]
[310966559,1704836023288,-500.0,0.00041835,30]
[310966560,1704836023299,-1020.06,0.00041835,30]
[310966561,1704836023310,-500.0,0.00041835,30]
[310966562,1704836023320,-955.18,0.00041835,30]
[310966563,1704836023330,-1186.89,0.00041835,30]
[310966564,1704836023340,-500.0,0.00041835,2]
[310966565,1704836023350,-500.0,0.00041835,30]
[310966566,1704836023360,-636.74,0.00041835,30]
[310966567,1704836023372,-768.37,0.00041835,30]
[310966568,1704836023383,-623.64,0.00041835,30]
[310966569,1704836023393,-500.0,0.00041835,30]
[310966570,1704836023403,-1030.22,0.00041835,30]
[310966571,1704836023415,-848.66,0.00041835,30]
[310966572,1704836023425,-589.0,0.00041835,30]
[310966573,1704836023437,-500.0,0.00041835,30]
[310966574,1704836023447,-1351.73,0.00041835,30]
[310966575,1704836023458,-555.34,0.00041835,30]
[310966576,1704836023468,-500.0,0.00041835,30]
[310966577,1704836023477,-1236.91,0.00041835,30]
[310966578,1704836023487,-551.84,0.00041835,30]
[310966579,1704836023497,-500.0,0.00041835,30]
[310966580,1704836023506,-500.0,0.00041835,30]
[310966581,1704836023516,-573.96278916,0.00041835,30]
[310966582,1704836023526,-576.84,0.00041835,30]
[310966583,1704836023535,-1038.11,0.00041835,30]
[310966584,1704836023545,-500.0,0.00041835,30]
[310966585,1704836023555,-500.0,0.00041835,30]
[310966586,1704836023565,-500.0,0.00041835,30]
[310966587,1704836023575,-500.0,0.00041835,30]
[310966588,1704836023585,-1358.69,0.00041835,30]
[310966589,1704836023594,-1217.37,0.00041835,30]
[310966590,1704836023604,-500.0,0.00041835,30]
[310966591,1704836023614,-500.0,0.00041835,30]
[310966592,1704836023625,-503.59096942,0.00041835,30]
[310966593,1704836023635,-1307.04,0.00041835,30]
[310966594,1704836023645,-2306.18,0.00041835,30]
[310966595,1704836023655,-500.0,0.00041835,30]
[310966596,1704836023665,-500.0,0.00041835,30]
[310966597,1704836023675,-500.0,0.00041835,30]
[310966598,1704836023686,-1192.74,0.00041835,30]
[310966599,1704836023696,-500.0,0.00041835,30]
[310966600,1704836023706,-500.0,0.00041835,30]
[310966601,1704836023716,-500.0,0.00041835,30]
[310966602,1704836023726,-611.23,0.00041835,30]
[310966603,1704836023736,-907.9,0.00041835,30]
[310966604,1704836023745,-234.56492169,0.00041835,30]
[310966605,1704836023755,-996.68,0.00041835,30]
[310966606,1704836023764,-500.0,0.00041835,30]
[310966607,1704836023774,-360.42314656,0.00041835,30]
[310966608,1704836023783,-500.0,0.00041835,30]
[310966609,1704836023793,-627.06,0.00041835,30]
[310966610,1704836023803,-500.0,0.00041835,30]
[310966611,1704836023814,-500.0,0.00041835,30]
[310966612,1704836023823,-500.0,0.00041835,30]
[310966613,1704836023833,-503.95,0.00041835,30]
[310966614,1704836023843,-500.0,0.00041835,30]
[310966615,1704836023852,-968.8,0.00041835,30]
[310966616,1704836023863,-1396.88,0.00041835,30]
[310966617,1704836023872,-635.82,0.00041835,30]
[310966618,1704836023883,-1404.61,0.00041835,30]
[310966619,1704836023893,-1231.44,0.00041835,30]
[310966620,1704836023903,-500.0,0.00041835,30]
[310966621,1704836023914,-554.78,0.00041835,30]
[310966622,1704836023923,-500.0,0.00041835,30]
[310966623,1704836023936,-1763.53,0.00041835,30]
[310966624,1704836023946,-500.0,0.00041835,30]
[310966625,1704836023956,-801.87,0.00041835,30]
[310966626,1704836023965,-500.0,0.00041835,30]
[310966627,1704836023974,-604.58,0.00041835,30]
[310966628,1704836023984,-1257.01,0.00041835,30]
[310966629,1704836023994,-239.58204938,0.00041835,30]
[310966630,1704836024004,-500.0,0.00041835,30]
[310966631,1704836024014,-1231.81,0.00041835,30]
[310966632,1704836024024,-491.62959627,0.00041835,30]
[310966633,1704836024034,-2010.91,0.00041835,30]
[310966634,1704836024043,-500.0,0.00041835,30]
[310966635,1704836024053,-1440.75,0.00041835,30]
[310966636,1704836024063,-896.14,0.00041835,30]
[310966637,1704836024074,-1418.35,0.00041835,30]
[310966638,1704836024084,-632.29,0.00041835,30]
[310966639,1704836024094,-808.1,0.00041835,30]
[310966640,1704836024103,-921.45,0.00041835,30]
[310966641,1704836024113,-500.0,0.00041835,30]
[310966642,1704836024124,-500.0,0.00041835,30]
[310966643,1704836024133,-1186.03,0.00041835,30]
[310966644,1704836024144,-1164.7,0.00041835,30]
[310966645,1704836024154,-640.28,0.00041835,30]
[310966646,1704836024164,-1105.56,0.00041835,30]
[310966647,1704836024174,-602.96,0.00041835,30]
[310966648,1704836024186,-943.57,0.00041835,30]
[310966649,1704836024196,-500.0,0.00041835,30]
[310966650,1704836024206,-771.07,0.00041835,30]
[310966651,1704836024215,-1027.4,0.00041835,30]
[310966652,1704836024225,-500.0,0.00041835,30]
[310966653,1704836024235,-500.0,0.00041835,30]
[310966654,1704836024245,-500.0,0.00041835,30]
[310966655,1704836024255,-1051.31,0.00041835,30]
[310966656,1704836024265,-916.0,0.00041835,30]
[310966657,1704836024275,-500.0,0.00041835,5]
[310966658,1704836024285,-1267.33,0.00041835,30]
[310966659,1704836024295,-538.74,0.00041835,7]
[310966660,1704836024305,-701.87,0.00041835,30]
[310966661,1704836024314,-1238.29,0.00041835,30]
[310966662,1704836024324,-759.13,0.00041835,30]
[310966663,1704836024334,-568.27165663,0.00041835,30]
[310966664,1704836024344,-606.97,0.00041835,30]
[310966665,1704836024354,-500.0,0.00041835,30]
[310966666,1704836024365,-1550.35,0.00041835,30]
[310966667,1704836024375,-500.0,0.00041835,30]
[310966668,1704836024610,-639.29,0.00041835,30]
[310966669,1704836024620,-836.7,0.00041835,30]
[310966670,1704836024629,-667.99,0.00041835,30]
[310966671,1704836024638,-500.0,0.00041835,30]
[310966672,1704836024648,-896.55,0.00041835,30]
[310966673,1704836024657,-500.0,0.00041835,30]
[310966674,1704836024666,-1272.22,0.00041835,30]